fUST/lending_fUST_20250715
["ID","MTS","AMOUNT","RATE_DAILY","PERIOD"]
[372308579,1752582633934,-460.0,0.00019178,2]
[372308580,1752582633946,-460.0,0.00019178,2]
[372308581,1752582633956,-460.0,0.00019178,2]
[372308582,1752582633968,-460.0,0.00019178,2]
[372308583,1752582633979,-460.0,0.00019178,2]
[372308584,1752582633990,-460.0,0.00019178,2]
[372308585,1752582634000,-460.0,0.00019178,2]
[372308586,1752582634008,-460.0,0.00019178,2]
[372308587,1752582634017,-176.614043,0.00019178,2]
[372308588,1752582634025,-43161.27952155,0.00019178,2]
[372308589,1752582634038,-6493.76568416,0.00019178,2]
[372308590,1752582634050,-344.95479429,0.00019178,2]
[372308591,1752582634060,-460.0,0.00019452,2]
[372308592,1752582634068,-460.0,0.00019452,2]
[372308593,1752582634077,-460.0,0.00019452,2]
[372308594,1752582634086,-460.0,0.00019452,2]
[372308595,1752582634094,-460.0,0.00019452,2]
[372308596,1752582634104,-664.93,0.00019452,2]
[372308597,1752582634115,-428.24128334,0.00019452,2]
[372308598,1752582634126,-460.0,0.00019452,2]
[372308599,1752582634137,-489.66764359,0.00019452,2]
[372308600,1752582634148,-460.0,0.00019452,2]
[372308601,1752582634159,-460.0,0.00019452,2]
[372308602,1752582634170,-460.0,0.00019452,2]
[372308603,1752582634181,-460.0,0.00019452,2]
[372308604,1752582634192,-460.0,0.00019452,2]
[372308605,1752582634204,-460.0,0.00019452,2]
[372308606,1752582634216,-146.35079363,0.00019452,2]
[372308615,1752582638632,-313.64920637,0.00019452,2]
[372308616,1752582638642,-514.45,0.00019452,2]
[372308617,1752582638652,-460.0,0.00019452,2]
[372308618,1752582638663,-460.0,0.00019452,2]
[372308619,1752582638674,-460.0,0.00019452,2]
[372308620,1752582638684,-202.48,0.00019452,2]
[372308621,1752582638697,-460.0,0.00019452,2]
[372308622,1752582638710,-460.0,0.00019452,2]
[372308623,1752582638720,-460.0,0.00019452,2]
[372308624,1752582638732,-460.0,0.00019452,2]
[372308625,1752582638742,-460.0,0.00019452,2]
[372308626,1752582638753,-460.0,0.00019725,2]
[372308627,1752582638764,-460.0,0.00019725,2]
[372308628,1752582638776,-460.0,0.00019725,2]
[372308629,1752582638788,-460.0,0.00019725,2]
[372308630,1752582638798,-460.0,0.00019725,2]
[372308631,1752582638809,-460.0,0.00019725,2]
[372308632,1752582638821,-460.0,0.00019725,2]
[372308633,1752582638832,-460.0,0.00019725,2]
[372308634,1752582638844,-460.0,0.00019726,2]
[372308635,1752582638855,-170.4,0.00019726,2]
[372308636,1752582638867,-262.06,0.00019726,2]
[372308637,1752582638878,-664.93,0.00019726,2]
[372308638,1752582638889,-460.0,0.00019726,2]
[372308639,1752582638902,-326.00339591,0.00019726,2]
[372308658,1752582640653,-150.55855783,0.00019178,2]
[372308660,1752582640663,-133.99660409,0.00019726,2]
[372308662,1752582640674,-460.0,0.00019726,2]
[372308664,1752582640684,-460.0,0.00019726,2]
[372308666,1752582640694,-460.0,0.00019726,2]
[372308669,1752582640705,-460.0,0.00019726,2]
[372308671,1752582640716,-460.0,0.00019726,2]
[372308673,1752582640727,-205.87801919,0.00019726,2]
[372308675,1752582640742,-254.12198081,0.00019726,2]
[372308677,1752582640753,-80.29534436,0.00019726,2]
[372308681,1752582640776,-434.15465564,0.00019726,2]
[372308683,1752582640790,-201.92,0.00019726,2]
[372308684,1752582640805,-460.0,0.00019726,2]
[372308685,1752582640816,-460.0,0.00019726,2]
[372308686,1752582640826,-460.0,0.00019726,2]
[372308687,1752582640836,-460.0,0.00019726,2]
[372308688,1752582640845,-460.0,0.00019726,2]
[372308689,1752582640855,-460.0,0.00019726,2]
[372308690,1752582640866,-420.0,0.00019903,2]
[372308691,1752582640876,-460.0,0.0002,2]
[372308692,1752582640886,-664.93,0.0002,2]
[372308693,1752582640896,-460.0,0.0002,2]
[372308694,1752582640907,-460.0,0.0002,2]
[372308696,1752582640928,-460.0,0.0002,2]
[372308697,1752582640943,-460.0,0.0002,2]
[372308699,1752582640953,-460.0,0.0002,2]
[372308701,1752582640963,-460.0,0.0002,2]
[372308703,1752582640973,-460.0,0.0002,2]
[372308704,1752582640983,-460.0,0.0002,2]
[372308705,1752582640994,-514.45,0.0002,2]
[372308706,1752582641004,-460.0,0.0002,2]
[372308707,1752582641014,-460.0,0.0002,2]
[372308708,1752582641024,-460.0,0.0002,2]
[372308709,1752582641037,-460.0,0.0002,2]
[372308710,1752582641047,-460.0,0.0002,2]
[372308711,1752582641058,-460.0,0.0002,2]
[372308712,1752582641068,-241.096731,0.00020187,2]
[372308713,1752582641078,-841.43,0.000202,2]
[372308714,1752582641088,-211.1332636,0.00020239,2]
[372308715,1752582641099,-664.93,0.00020273,2]
[372308716,1752582641109,-460.0,0.00020273,2]
[372308717,1752582641120,-367.52908921,0.00020273,2]
[372308718,1752582641130,-460.0,0.00020273,2]
[372308719,1752582641140,-460.0,0.00020273,2]
[372308720,1752582641150,-460.0,0.00020273,2]
[372308721,1752582641161,-460.0,0.00020273,2]
[372308722,1752582641172,-460.0,0.00020273,2]
[372308723,1752582641182,-460.0,0.00020273,2]
[372308724,1752582641192,-514.45,0.00020273,2]
[372308725,1752582641203,-460.0,0.00020273,2]
[372308726,1752582641213,-460.0,0.00020273,2]
[372308727,1752582641223,-460.0,0.00020273,2]
[372308728,1752582641233,-460.0,0.00020273,2]
[372308729,1752582641243,-460.0,0.00020273,2]
[372308730,1752582641253,-460.0,0.00020273,2]
[372308731,1752582641264,-215.50840239,0.00020309,2]
[372308732,1752582641274,-160.0,0.00020309,2]
[372308733,1752582641284,-160.0,0.00020309,2]
[372308734,1752582641300,-838.84061749,0.00020309,2]
[372308735,1752582641311,-160.0,0.00020309,2]
[372308736,1752582641321,-230.76969291,0.00020309,2]
[372308737,1752582641331,-525.51022752,0.00020309,2]
[372308738,1752582641341,-468.75,0.00020311,2]
[372308739,1752582641351,-500.0,0.00020418,2]
[372308740,1752582641362,-664.93,0.00020547,2]
[372308741,1752582641373,-460.0,0.00020547,2]
[372308742,1752582641382,-460.0,0.00020547,2]
[372308743,1752582641393,-460.0,0.00020547,2]
[372308744,1752582641403,-460.0,0.00020547,2]
[372308745,1752582641414,-460.0,0.00020547,2]
[372308746,1752582641424,-460.0,0.00020547,2]
[372308747,1752582641434,-460.0,0.00020547,2]
[372308748,1752582641444,-514.45,0.00020547,2]
[372308749,1752582641454,-460.0,0.00020547,2]
[372308750,1752582641465,-460.0,0.00020547,2]
[372308751,1752582641475,-460.0,0.00020547,2]
[372308752,1752582641485,-460.0,0.00020547,2]
[372308753,1752582641496,-460.0,0.00020547,2]
[372308754,1752582641506,-460.0,0.00020547,2]
[372308755,1752582641517,-160.0,0.0002055,2]
[372308756,1752582641527,-573.18,0.00020787,2]
[372308757,1752582641542,-664.93,0.00020821,2]
[372308758,1752582641552,-460.0,0.00020821,2]
[372308759,1752582641563,-460.0,0.00020821,2]
[372308760,1752582641574,-460.0,0.00020821,2]
[372308761,1752582641584,-460.0,0.00020821,2]
[372308762,1752582641594,-460.0,0.00020821,2]
[372308763,1752582641607,-460.0,0.00020821,2]
[372308764,1752582641618,-460.0,0.00020821,2]
[372308765,1752582641628,-514.45,0.00020821,2]
[372308766,1752582641638,-460.0,0.00020821,2]
[372308767,1752582641648,-122.93117983,0.00020821,2]
[372308768,1752582641664,-337.06882017,0.00020821,2]
[372308769,1752582641675,-180.44221487,0.00020821,2]
[372308770,1752582641685,-460.0,0.00020821,2]
[372308771,1752582641696,-460.0,0.00020821,2]
[372308772,1752582641706,-460.0,0.00020821,2]
[372308773,1752582641716,-1000.0,0.00020966,2]
[372308774,1752582641727,-664.93,0.00021095,2]
[372308775,1752582641738,-460.0,0.00021095,2]
[372308776,1752582641747,-400.91964355,0.00021095,2]
[372308777,1752582641762,-59.08035645,0.00021095,2]
[372308778,1752582641773,-460.0,0.00021095,2]
[372308779,1752582641783,-460.0,0.00021095,2]
[372308780,1752582641798,-460.0,0.00021095,2]
[372308781,1752582641981,-460.0,0.00021095,2]
[372308782,1752582641995,-460.0,0.00021095,2]
[372308783,1752582642005,-514.45,0.00021095,2]
[372308784,1752582642014,-507.30583135,0.00021095,2]
[372308785,1752582642024,-460.0,0.00021095,2]
[372308786,1752582642034,-302.46720715,0.00021095,2]
[372308787,1752582642046,-460.0,0.00021095,2]
[372308788,1752582642056,-460.0,0.00021095,2]
[372308789,1752582642065,-260.0,0.00021098,2]
[372308790,1752582642075,-1709.13,0.000211,2]
[372308791,1752582642085,-207.4,0.00021155,2]
[372308792,1752582642094,-664.93,0.00021369,2]
[372308793,1752582642104,-460.0,0.00021369,2]
[372308794,1752582642113,-460.0,0.00021369,2]
[372308795,1752582642123,-150.11630534,0.00021369,2]
[372308796,1752582642132,-460.0,0.00021369,2]
[372308797,1752582642142,-460.0,0.00021369,2]
[372308798,1752582642151,-401.62952119,0.00021369,2]
[372308799,1752582642161,-460.0,0.00021369,2]
[372308800,1752582642170,-514.45,0.00021369,2]
[372308801,1752582642179,-460.0,0.00021369,2]
[372308802,1752582642189,-460.0,0.00021369,2]
[372308803,1752582642198,-460.0,0.00021369,2]
[372308804,1752582642207,-211.1332636,0.000214,2]
[372308805,1752582642216,-1019.58556931,0.00021408,2]
[372308806,1752582642226,-701.47594085,0.0002148,2]
[372308807,1752582642236,-4947.04,0.0002149,10]
[372308808,1752582642245,-179.8660857,0.00021499,2]
[372308809,1752582642255,-20756.19890766,0.000215,2]
[372308810,1752582642270,-26003.30511358,0.000215,2]
[372308814,1752582643619,-449317.86602124,0.000215,2]
[372308815,1752582643630,-21760.45,0.000215,2]
[372308816,1752582643639,-1500.0,0.00021514,2]
[372308817,1752582643649,-205.0,0.0002158,2]
[372308818,1752582643660,-664.93,0.00021643,2]
[372308819,1752582643669,-460.0,0.00021643,2]
[372308820,1752582643679,-460.0,0.00021643,2]
[372308821,1752582643689,-460.0,0.00021643,2]
[372308822,1752582643699,-460.0,0.00021643,2]
[372308823,1752582643708,-460.0,0.00021643,2]
[372308824,1752582643718,-514.45,0.00021643,2]
[372308825,1752582643727,-460.0,0.00021643,2]
[372308826,1752582643736,-460.0,0.00021643,2]
[372308827,1752582643746,-460.0,0.00021643,2]
[372308828,1752582643756,-360.0,0.00021646,2]
[372308829,1752582643765,-500.0,0.00021682,2]
[372308830,1752582643775,-500.0,0.00021686,2]
[372308831,1752582643784,-841.43,0.000217,2]
[372308832,1752582643798,-587.0,0.00021711,2]
[372308833,1752582643808,-224.05,0.0002176,2]
[372308834,1752582643817,-664.93,0.00021917,2]
[372308835,1752582643827,-460.0,0.00021917,2]
[372308836,1752582643836,-460.0,0.00021917,2]
[372308837,1752582643846,-460.0,0.00021917,2]
[372308838,1752582643856,-460.0,0.00021917,2]
[372308840,1752582643866,-460.0,0.00021917,2]
[372308842,1752582643875,-514.45,0.00021917,2]
[372308843,1752582643884,-460.0,0.00021917,2]
[372308844,1752582643893,-460.0,0.00021917,2]
[372308845,1752582643903,-205.0,0.0002193,2]
[372308846,1752582643913,-664.93,0.00022191,2]
[372308847,1752582643925,-460.0,0.00022191,2]
[372308848,1752582643934,-460.0,0.00022191,2]
[372308849,1752582643943,-460.0,0.00022191,2]
[372308850,1752582643953,-460.0,0.00022191,2]
[372308851,1752582643963,-460.0,0.00022191,2]
[372308853,1752582643973,-514.45,0.00022191,2]
[372308854,1752582643982,-460.0,0.00022191,2]
[372308856,1752582643992,-460.0,0.00022191,2]
[372308858,1752582644002,-460.0,0.00022194,2]
[372308859,1752582644011,-1000.0,0.00022234,2]
[372308860,1752582644020,-701.47594084,0.00022285,2]
[372308861,1752582644030,-205.0,0.0002229,2]
[372308862,1752582644040,-1262.31,0.000223,2]
[372308863,1752582644049,-664.93,0.00022465,2]
[372308865,1752582644059,-460.0,0.00022465,2]
[372308866,1752582644069,-460.0,0.00022465,2]
[372308867,1752582644078,-460.0,0.00022465,2]
[372308868,1752582644087,-460.0,0.00022465,2]
[372308869,1752582644096,-460.0,0.00022465,2]
[372308870,1752582644105,-514.45,0.00022465,2]
[372308871,1752582644115,-460.0,0.00022465,2]
[372308872,1752582644124,-460.0,0.00022465,2]
[372308873,1752582644134,-215.0738,0.00022524,2]
[372308874,1752582644143,-1709.13,0.000226,7]
[372308875,1752582644152,-205.0,0.0002265,2]
[372308876,1752582644162,-664.93,0.00022739,2]
[372308877,1752582644172,-460.0,0.00022739,2]
[372308878,1752582644181,-460.0,0.00022739,2]
[372308879,1752582644191,-460.0,0.00022739,2]
[372308880,1752582644200,-460.0,0.00022739,2]
[372308881,1752582644210,-460.0,0.00022739,2]
[372308882,1752582644220,-514.45,0.00022739,2]
[372308883,1752582644229,-254.68573238,0.00022739,2]
[372308884,1752582644239,-237.0550024,0.00022739,2]
[372308885,1752582644248,-560.0,0.00022742,2]
[372308886,1752582644258,-2155.0,0.00022771,2]
[372308887,1752582644267,-968.0,0.00022771,2]
[372308888,1752582644276,-407.0,0.00022771,2]
[372308889,1752582644285,-647.0,0.00022771,2]
[372308890,1752582644299,-500.0,0.00022778,2]
[372308891,1752582644308,-1500.0,0.00022782,2]
[372308892,1752582644318,-163.17977,0.00022815,7]
[372308893,1752582644328,-163.17977,0.0002286,3]
[372308894,1752582644337,-21760.45,0.000229,2]
[372308895,1752582644347,-168.0,0.00022921,2]
[372308896,1752582644356,-168.0,0.00022943,2]
[372308897,1752582644365,-205.0,0.0002301,2]
[372308898,1752582644375,-664.93,0.00023013,2]
[372308899,1752582644384,-460.0,0.00023013,2]
[372308900,1752582644394,-460.0,0.00023013,2]
[372308901,1752582644404,-460.0,0.00023013,2]
[372308902,1752582644414,-467.39567122,0.00023013,2]
[372308903,1752582644423,-460.0,0.00023013,2]
[372308904,1752582644433,-514.45,0.00023013,2]
[372308905,1752582644443,-701.47594084,0.0002309,2]
[372308906,1752582644453,-1019.5855693,0.00023107,2]
[372308907,1752582644464,-2200.0,0.00023247,2]
[372308908,1752582644474,-200.0,0.0002325,7]
[372308909,1752582644483,-664.93,0.00023287,2]
[372308910,1752582644493,-460.0,0.00023287,2]
[372308911,1752582644503,-460.0,0.00023287,2]
[372308912,1752582644512,-460.0,0.00023287,2]
[372308913,1752582644522,-460.0,0.00023287,2]
[372308914,1752582644531,-514.45,0.00023287,2]
[372308915,1752582644545,-660.0,0.0002329,2]
[372308916,1752582644554,-500.0,0.00023294,2]
[372308917,1752582644564,-1974.90856,0.0002333,2]
[372308918,1752582644574,-150.0,0.00023344,2]
[372308919,1752582644583,-205.0,0.0002337,2]
[372308920,1752582644593,-17662.46045321,0.000235,3]
[372308921,1752582644604,-160.0,0.000235,3]
[372308922,1752582644617,-838.84061749,0.000235,3]
[372308923,1752582644627,-160.0,0.000235,3]
[372308924,1752582644636,-215.50840239,0.000235,3]
[372308925,1752582644646,-230.76969291,0.000235,3]
[372308926,1752582644656,-525.51022752,0.000235,3]
[372308927,1752582644666,-779.184249,0.0002352,8]
[372308928,1752582644675,-664.93,0.00023561,2]
[372308929,1752582644685,-460.0,0.00023561,2]
[372308930,1752582644696,-460.0,0.00023561,2]
[372308931,1752582644707,-460.0,0.00023561,2]
[372308932,1752582644717,-460.0,0.00023561,2]
[372308933,1752582644728,-514.45,0.00023561,2]
[372308934,1752582644738,-841.43,0.000236,7]
[372308935,1752582644747,-823.0,0.00023683,2]
[372308936,1752582644756,-168.0,0.00023721,2]
[372308937,1752582644767,-205.0,0.0002373,2]
[372308938,1752582644776,-176.614043,0.00023744,2]
[372308939,1752582644786,-168.0,0.00023819,2]
[372308940,1752582644801,-168.0,0.00023833,2]
[372308941,1752582644810,-664.93,0.00023835,2]
[372308942,1752582644819,-460.0,0.00023835,2]
[372308943,1752582644829,-460.0,0.00023835,2]
[372308944,1752582644838,-460.0,0.00023835,2]
[372308945,1752582644848,-460.0,0.00023835,2]
[372308946,1752582644857,-514.45,0.00023835,2]
[372308947,1752582644866,-760.0,0.00023838,2]
[372308948,1752582644876,-1000.02726853,0.00023842,2]
[372308949,1752582644885,-429.0948676,0.00023887,2]
[372308950,1752582644895,-429.0948676,0.00023887,2]
[372308951,1752582644904,-429.0948676,0.00023887,2]
[372308952,1752582644913,-429.0948676,0.00023887,2]
[372308953,1752582644923,-429.0948676,0.00023887,2]
[372308954,1752582644933,-429.0948676,0.00023887,2]
[372308955,1752582644942,-300.0,0.00023892,2]
[372308956,1752582644952,-223.0315306,0.00023893,2]
[372308957,1752582644961,-701.47594084,0.00023895,2]
[372308958,1752582644971,-777.82829627,0.000239,2]
[372308959,1752582644980,-168.0,0.00023953,2]
[372308960,1752582644990,-150.0,0.00023973,2]
[372308961,1752582644999,-2342.11123434,0.00024,2]
[372308962,1752582645009,-209658.58914518,0.00024,10]
[372308963,1752582645019,-328.18003803,0.00024,2]
[372308964,1752582645028,-160.0,0.00024,7]
[372308965,1752582645037,-160.0,0.00024,10]
[372308966,1752582645051,-841.11168226,0.00024,2]
[372308967,1752582645061,-17532.8,0.00024,7]
[372308968,1752582645070,-1379.224969,0.00024,5]
[372308969,1752582645079,-937.0,0.00024,2]
[372308970,1752582645089,-937.0,0.00024,2]
[372308971,1752582645099,-937.0,0.00024,2]
[372308972,1752582645108,-937.0,0.00024,2]
[372308973,1752582645117,-937.0,0.00024,2]
[372308974,1752582645126,-937.0,0.00024,2]
[372308975,1752582645136,-937.0,0.00024,2]
[372308976,1752582645145,-937.0,0.00024,2]
[372308977,1752582645155,-937.0,0.00024,2]
[372308978,1752582645165,-937.0,0.00024,2]
[372308979,1752582645175,-838.84061749,0.00024,7]
[372308980,1752582645184,-838.84061749,0.00024,10]
[372308981,1752582645194,-215.50840239,0.00024,7]
[372308982,1752582645203,-230.76969291,0.00024,7]
[372308983,1752582645213,-230.76969291,0.00024,10]
[372308984,1752582645222,-525.51022752,0.00024,7]
[372308985,1752582645232,-525.51022752,0.00024,10]
[372308986,1752582645241,-205.0,0.0002408,2]
[372308987,1752582645250,-1709.13,0.000241,7]
[372308988,1752582645260,-168.0,0.00024108,2]
[372308989,1752582645270,-664.93,0.00024109,2]
[372308990,1752582645280,-460.0,0.00024109,2]
[372308991,1752582645293,-460.0,0.00024109,2]
[372308992,1752582645302,-460.0,0.00024109,2]
[372308993,1752582645312,-460.0,0.00024109,2]
[372308994,1752582645322,-514.45,0.00024109,2]
[372308995,1752582645332,-328.18003803,0.0002411,2]
[372308996,1752582645341,-167.91,0.00024117,2]
[372308997,1752582645351,-162.0,0.00024164,7]
[372308998,1752582645360,-2000.0,0.000242,2]
[372308999,1752582645370,-21760.45,0.000242,2]
[372309000,1752582645379,-17217.69971815,0.00024221,10]
[372309001,1752582645393,-2895.19439012,0.00024221,10]
[372309002,1752582645405,-767.0,0.00024221,10]
[372309035,1752582810540,421.0,0.00027397,120]
[372309036,1752583025315,2485.47,0.00023,30]
[372309037,1752583050168,2485.4,0.000181,2]
[372309047,1752583398770,4943.37979607,0.00018001,2]
[372309048,1752583398795,11575.0572,0.00018001,2]
[372309049,1752583398820,11575.0572,0.00018001,2]
[372309050,1752583398847,11575.0572,0.00018001,2]
[372309051,1752583398872,10353.26246133,0.00018001,2]
[372309054,1752583545128,-166.0,0.00018134,2]
[372309055,1752583545150,-300.0,0.000189,2]
[372309056,1752583545171,-480.0,0.000189,2]
[372309057,1752583545193,-69.78204096,0.00018901,2]
[372309059,1752583630135,-300.0,0.000189,2]
[372309060,1752583630157,-223.92754912,0.00018901,2]
[372309061,1752583634146,-172.50822958,0.00018901,2]
[372309062,1752583646098,-349.51799198,0.00018901,2]
[372309064,1752583689055,216.987057,0.00013699,2]
[372309066,1752583789827,1004.80768167,0.00018026,2]
[372309067,1752583789850,715.76564163,0.00018026,2]
[372309120,1752583832804,-518.55219751,0.000189,2]
[372309121,1752583832814,-300.0,0.000189,2]
[372309122,1752583832824,-24084.26418836,0.00018901,2]
[372309123,1752583832834,-251.72,0.00018968,3]
[372309125,1752583832843,-755.2,0.00018968,3]
[372309127,1752583832852,-207.7516746,0.00018973,2]
[372309129,1752583832862,-500.0,0.00018973,2]
[372309132,1752583832871,-272.60535273,0.00018977,2]
[372309134,1752583832880,-55963.12036179,0.00018978,2]
[372309136,1752583832892,-2971.4,0.00018978,2]
[372309161,1752583839235,-31983.71672769,0.00018978,2]
[372309162,1752583839345,-2123.83212,0.00018978,2]
[372309244,1752583845352,-37258.17789346,0.00018978,2]
[372309245,1752583845362,-460.0,0.00019178,2]
[372309246,1752583845371,-460.0,0.00019178,2]
[372309247,1752583845381,-460.0,0.00019178,2]
[372309248,1752583845391,-461.42931515,0.00019178,2]
[372309250,1752583845400,-460.0,0.00019178,2]
[372309251,1752583845409,-460.0,0.00019178,2]
[372309252,1752583845418,-513.58595276,0.00019178,2]
[372309253,1752583845428,-460.0,0.00019178,2]
[372309254,1752583845447,-460.0,0.00019178,2]
[372309255,1752583845458,-460.0,0.00019178,2]
[372309256,1752583845468,-460.0,0.00019178,2]
[372309257,1752583845478,-460.0,0.00019178,2]
[372309258,1752583845488,-460.0,0.00019178,2]
[372309259,1752583845498,-460.0,0.00019178,2]
[372309260,1752583845507,-460.0,0.00019178,2]
[372309261,1752583845517,-460.0,0.00019178,2]
[372309262,1752583845529,-460.0,0.00019178,2]
[372309263,1752583845539,-460.0,0.00019178,2]
[372309264,1752583845548,-294.56393702,0.00019178,2]
[372309265,1752583845558,-460.0,0.00019178,2]
[372309266,1752583845567,-510.43,0.00019178,2]
[372309267,1752583845577,-460.0,0.00019178,2]
[372309268,1752583845587,-460.0,0.00019178,2]
[372309269,1752583845597,-539.95,0.00019178,2]
[372309270,1752583845607,-460.0,0.00019178,2]
[372309271,1752583845617,-460.0,0.00019178,2]
[372309272,1752583845627,-460.0,0.00019178,2]
[372309273,1752583845637,-460.0,0.00019178,2]
[372309274,1752583845647,-460.0,0.00019178,2]
[372309275,1752583845657,-460.0,0.00019178,2]
[372309276,1752583845666,-460.0,0.00019178,2]
[372309277,1752583845677,-460.0,0.00019178,2]
[372309278,1752583845687,-460.0,0.00019178,2]
[372309279,1752583845697,-460.0,0.00019178,2]
[372309280,1752583845707,-460.0,0.00019178,2]
[372309281,1752583845717,-460.0,0.00019178,2]
[372309282,1752583845727,-460.0,0.00019178,2]
[372309283,1752583845736,-493.02,0.00019178,2]
[372309284,1752583845746,-424.39953973,0.00019178,2]
[372309285,1752583845755,-176.614043,0.00019178,2]
[372309286,1752583845765,-7049.83461245,0.00019178,2]
[372309287,1752583845775,-757.28,0.000192,2]
[372309288,1752583845785,-460.0,0.00019452,2]
[372309289,1752583845795,-460.0,0.00019452,2]
[372309290,1752583845805,-460.0,0.00019452,2]
[372309291,1752583845815,-211.63603776,0.00019452,2]
[372309292,1752583845825,-520.14,0.00019452,2]
[372309293,1752583845835,-460.0,0.00019452,2]
[372309294,1752583845845,-539.95,0.00019452,2]
[372309295,1752583845855,-460.0,0.00019452,2]
[372309296,1752583845866,-460.0,0.00019452,2]
[372309297,1752583845875,-460.0,0.00019452,2]
[372309298,1752583845885,-460.0,0.00019452,2]
[372309299,1752583845895,-460.0,0.00019452,2]
[372309300,1752583845905,-460.0,0.00019452,2]
[372309301,1752583845914,-460.0,0.00019452,2]
[372309302,1752583845924,-460.0,0.00019452,2]
[372309303,1752583845934,-460.0,0.00019452,2]
[372309304,1752583845943,-460.0,0.00019452,2]
[372309305,1752583845955,-460.0,0.00019452,2]
[372309306,1752583845965,-460.0,0.00019452,2]
[372309307,1752583845974,-493.02,0.00019452,2]
[372309308,1752583845983,-324.50619112,0.00019521,2]
[372309309,1752583845994,-500.0,0.000197,2]
[372309310,1752583846004,-500.0,0.000197,2]
[372309311,1752583846014,-460.0,0.00019726,2]
[372309312,1752583846024,-539.95,0.00019726,2]
[372309313,1752583846035,-460.0,0.00019726,2]
[372309314,1752583846045,-460.0,0.00019726,2]
[372309316,1752583846059,-460.0,0.00019726,2]
[372309317,1752583846069,-460.0,0.00019726,2]
[372309318,1752583846078,-318.24959618,0.00019726,2]
[372309319,1752583846088,-460.0,0.00019726,2]
[372309320,1752583846098,-460.0,0.00019726,2]
[372309321,1752583846108,-460.0,0.00019726,2]
[372309323,1752583846117,-254.1,0.00019726,2]
[372309324,1752583846127,-208.88,0.00019726,2]
[372309325,1752583846137,-460.0,0.00019726,2]
[372309326,1752583846147,-493.02,0.00019726,2]
[372309327,1752583846157,-460.0,0.0002,2]
[372309328,1752583846166,-539.95,0.0002,2]
[372309329,1752583846176,-460.0,0.0002,2]
[372309330,1752583846186,-460.0,0.0002,2]
[372309331,1752583846197,-460.0,0.0002,2]
[372309332,1752583846206,-460.0,0.0002,2]
[372309333,1752583846216,-460.0,0.0002,2]
[372309334,1752583846226,-460.0,0.0002,2]
[372309335,1752583846235,-460.0,0.0002,2]
[372309336,1752583846245,-460.0,0.0002,2]
[372309337,1752583846255,-493.02,0.0002,2]
[372309338,1752583846265,-216.987057,0.00020187,2]
[372309339,1752583846276,-1000.0,0.00020248,2]
[372309341,1752583846286,-1000.0,0.00020248,2]
[372309342,1752583846295,-460.0,0.00020273,2]
[372309343,1752583846305,-539.95,0.00020273,2]
[372309344,1752583846315,-460.0,0.00020273,2]
[372309345,1752583846325,-460.0,0.00020273,2]